bitfinex/quotes_BTCUSD_20250529
["timestamp","ask_amount","ask_price","bid_price","bid_amount"]
[1748526193458,0.21337672,107790.0,107780.0,0.70718152]
[1748526193718,0.01855364,107790.0,107780.0,0.70718152]
[1748526193937,0.2040996,107790.0,107780.0,0.70718152]
[1748526194169,0.21337681,107790.0,107780.0,0.70718152]
[1748526194622,0.21337681,107790.0,107780.0,1.08694152]
[1748526194829,0.21337681,107790.0,107780.0,0.54737529]
[1748526195034,0.21337681,107790.0,107780.0,1.08694152]
[1748526195241,0.21337672,107790.0,107780.0,1.08694152]
[1748526195447,0.22265393,107790.0,107780.0,1.06294152]
[1748526195648,0.21337672,107790.0,107780.0,1.10194152]
[1748526195830,0.22265401,107790.0,107780.0,1.08894152]
[1748526196041,0.2984895,107800.0,107790.0,0.01454085]
[1748526196254,0.2984895,107800.0,107790.0,0.86822328]
[1748526196255,0.02061606,107800.0,107790.0,0.86822328]
[1748526196462,0.22469708,107800.0,107790.0,0.86822328]
[1748526197124,0.21542116,107800.0,107790.0,0.86822328]
[1748526197323,0.21542116,107800.0,107790.0,0.89222328]
[1748526197538,0.25961708,107820.0,107790.0,0.89222328]
[1748526197539,0.01854908,107820.0,107790.0,0.89222328]
[1748526197759,0.19478642,107810.0,107800.0,0.39270085]
[1748526197971,0.19478642,107810.0,107800.0,1.11583225]
[1748526197972,0.21333756,107810.0,107800.0,1.11583225]
[1748526198447,0.21333756,107810.0,107800.0,0.73767225]
[1748526198657,0.20406242,107810.0,107800.0,1.26335225]
[1748526199090,0.20406242,107810.0,107800.0,1.26311225]
[1748526199309,0.20406242,107810.0,107800.0,1.27211225]
[1748526199750,0.20406242,107810.0,107800.0,1.29811225]
[1748526200623,0.20406242,107810.0,107800.0,0.38102602]
[1748526200833,0.20406242,107810.0,107800.0,1.20024103]
[1748526200834,0.19478711,107810.0,107800.0,1.20024103]
[1748526201316,0.21057728,107840.0,107810.0,0.01454085]
[1748526201545,0.21057728,107840.0,107820.0,0.79118085]
[1748526201546,0.20402434,107830.0,107820.0,0.79118085]
[1748526201758,0.20402434,107830.0,107820.0,1.56560103]
[1748526201759,0.22257151,107830.0,107820.0,1.56560103]
[1748526201975,0.00927308,107830.0,107820.0,1.65811225]
[1748526202200,0.02781966,107830.0,107820.0,1.65811225]
[1748526202441,0.23831689,107840.0,107830.0,0.01454085]
[1748526202660,0.22904433,107840.0,107830.0,0.73767225]
[1748526202886,0.22904433,107840.0,107830.0,0.49220602]
[1748526203113,0.22904433,107840.0,107830.0,1.03920102]
[1748526203348,0.22904433,107840.0,107830.0,0.66384102]
[1748526203641,0.22904433,107840.0,107830.0,0.80225518]
[1748526203900,0.22904433,107840.0,107830.0,1.11089603]
[1748526204146,0.22904433,107840.0,107830.0,1.48653603]
[1748526204393,0.22904433,107840.0,107830.0,0.9469698]
[1748526204637,0.22904433,107840.0,107830.0,1.57904725]
[1748526204955,0.22904433,107840.0,107830.0,1.20340725]
[1748526205125,0.22904433,107840.0,107830.0,0.70384102]
[1748526205354,0.29104433,107840.0,107830.0,0.54550017]
[1748526205586,0.29104433,107840.0,107830.0,0.68930017]
[1748526205802,0.29104433,107840.0,107830.0,0.70384102]
[1748526206021,0.63104433,107840.0,107830.0,0.70384102]
[1748526206255,0.63104433,107840.0,107830.0,0.56004102]
[1748526206482,0.63104433,107840.0,107830.0,0.70384102]
[1748526207568,0.63104433,107840.0,107830.0,0.40974102]
[1748526208682,0.63104433,107840.0,107830.0,0.26594102]
[1748526208900,0.63104433,107840.0,107830.0,0.40974102]
[1748526209570,0.63104433,107840.0,107830.0,1.24340725]
[1748526209798,0.29104433,107840.0,107830.0,1.24340725]
[1748526210061,0.22904433,107840.0,107830.0,1.24340725]
[1748526210707,0.29284433,107840.0,107830.0,0.70384102]
[1748526210932,0.29284433,107840.0,107830.0,0.56004102]
[1748526211159,0.29284433,107840.0,107830.0,0.59674895]
[1748526211376,0.66428433,107840.0,107830.0,0.59674895]
[1748526211594,1.00428433,107840.0,107830.0,0.59674895]
[1748526211823,1.55235032,107840.0,107830.0,0.56891395]
[1748526212073,1.55235113,107840.0,107830.0,0.56891395]
[1748526212305,1.55235092,107840.0,107830.0,0.56891395]
[1748526212521,1.5523545,107840.0,107830.0,0.5574548]
[1748526212753,1.01278827,107840.0,107830.0,0.65524602]
[1748526213215,1.01278827,107840.0,107830.0,0.66624602]
[1748526213433,1.00428433,107840.0,107830.0,0.66624602]
[1748526213659,1.01279883,107840.0,107830.0,0.66624602]
[1748526213914,1.0127988,107840.0,107830.0,0.66624602]
[1748526214151,1.55236504,107840.0,107830.0,0.26509395]
[1748526214600,1.01279881,107840.0,107830.0,0.26509395]
[1748526214821,1.55236504,107840.0,107830.0,0.26509395]
[1748526215044,1.55236504,107840.0,107830.0,0.2796348]
[1748526215286,1.55236427,107840.0,107830.0,0.1055948]
[1748526215517,1.55236427,107840.0,107830.0,0.2536348]
[1748526215754,1.55237102,107840.0,107830.0,0.2536348]
[1748526215992,0.64136511,107840.0,107830.0,0.31907028]
[1748526216223,0.64136576,107840.0,107830.0,0.31907028]
[1748526216499,0.30136576,107840.0,107830.0,0.39307925]
[1748526216690,0.64136576,107840.0,107830.0,0.39307925]
[1748526217153,0.64137469,107840.0,107830.0,0.38507925]
[1748526217389,0.63284433,107840.0,107830.0,0.38507925]
[1748526217621,0.64138197,107840.0,107830.0,0.2676348]
[1748526217866,1.17241056,107840.0,107830.0,0.2676348]
[1748526218124,1.18094931,107840.0,107830.0,0.25309395]
[1748526218361,1.18094846,107840.0,107830.0,0.2676348]
[1748526218600,1.18094846,107840.0,107830.0,0.26309395]
[1748526218840,1.18095788,107840.0,107830.0,0.26309395]
[1748526219112,1.18095788,107840.0,107830.0,0.2776348]
[1748526219358,1.18095788,107840.0,107830.0,0.1375948]
[1748526219574,1.18095788,107840.0,107830.0,0.2776348]
[1748526219792,1.18095841,107840.0,107830.0,0.2776348]
[1748526220008,1.17241056,107840.0,107830.0,0.2776348]
[1748526220225,1.18095879,107840.0,107830.0,0.27160628]
[1748526220464,1.18095879,107840.0,107830.0,0.37160628]
[1748526220465,1.17241056,107840.0,107830.0,0.37160628]
[1748526220699,1.18096878,107840.0,107830.0,0.43883891]
[1748526220956,1.18096878,107840.0,107830.0,0.37160628]
[1748526220957,1.18096896,107840.0,107830.0,0.37160628]
[1748526222073,1.1809693,107840.0,107830.0,0.37160628]
[1748526222292,1.18096931,107840.0,107830.0,0.37160628]
[1748526222514,1.18096923,107840.0,107830.0,0.37160628]
[1748526222732,1.54608923,107840.0,107830.0,0.37160628]
[1748526222982,1.54608923,107840.0,107830.0,0.23156628]
[1748526223209,1.54608951,107840.0,107830.0,0.36796628]
[1748526223874,1.53753056,107840.0,107830.0,0.36796628]
[1748526224377,1.54608959,107840.0,107830.0,0.36796628]
[1748526225282,1.54608959,107840.0,107830.0,0.36779959]
[1748526225543,0.64140336,107840.0,107830.0,0.36779959]
[1748526225770,0.64140336,107840.0,107830.0,0.44465155]
[1748526225771,0.99644433,107840.0,107830.0,0.44465155]
[1748526226001,0.99644433,107840.0,107830.0,0.36779959]
[1748526226002,1.54457024,107840.0,107830.0,0.36779959]
[1748526226234,1.54461024,107840.0,107830.0,0.36779959]
[1748526226452,0.99648433,107840.0,107830.0,0.36779959]
[1748526226685,1.54460985,107840.0,107830.0,0.36779959]
[1748526227138,1.54460951,107840.0,107830.0,0.36779959]
[1748526227358,1.53605056,107840.0,107830.0,0.36779959]
[1748526227573,1.54460866,107840.0,107830.0,0.36779959]
[1748526228456,1.54460866,107840.0,107830.0,0.28875874]
[1748526228457,6.58605056,107840.0,107830.0,0.28875874]
[1748526228682,6.04648433,107840.0,107830.0,0.15235874]
[1748526228914,6.58705056,107840.0,107830.0,0.02335874]
[1748526229137,5.64855081,107830.0,107820.0,0.40072]
[1748526229410,5.64855081,107830.0,107800.0,0.00014768]
[1748526229411,0.20406208,107810.0,107800.0,0.00014768]
[1748526229645,1.52250599,107810.0,107800.0,0.22760163]
[1748526229870,0.26629994,107790.0,107780.0,0.53708]
[1748526230085,1.16794617,107790.0,107780.0,0.62813395]
[1748526230753,1.16794617,107790.0,107780.0,0.6426748]
[1748526230981,1.50794617,107790.0,107780.0,0.62813395]
[1748526231423,1.50794617,107790.0,107780.0,0.6436748]
[1748526231648,1.50710617,107790.0,107780.0,0.49273395]
[1748526231895,1.50710617,107790.0,107740.0,0.40072]
[1748526231896,0.54417572,107750.0,107740.0,0.40072]
[1748526232102,1.44482195,107750.0,107740.0,0.62817395]
[1748526232347,0.90525572,107750.0,107740.0,0.49177395]
[1748526232565,0.90525572,107750.0,107740.0,0.62817395]
[1748526232783,0.90525572,107750.0,107740.0,0.6427148]
[1748526232998,0.90525572,107750.0,107740.0,0.62817395]
[1748526233231,0.90525572,107750.0,107740.0,0.62866637]
[1748526233678,0.90525572,107750.0,107740.0,0.63566637]
[1748526233895,0.90525572,107750.0,107740.0,0.65020722]
[1748526234569,0.90725572,107750.0,107740.0,0.66520722]
[1748526235445,0.90725572,107750.0,107740.0,0.66136722]
[1748526236147,1.44682195,107750.0,107740.0,0.66136722]
[1748526236378,1.44682195,107750.0,107740.0,0.52880722]
[1748526236592,1.44682195,107750.0,107740.0,0.66136722]
[1748526237027,1.47732195,107750.0,107740.0,0.66136722]
[1748526237493,1.44682195,107750.0,107740.0,0.66136722]
[1748526237710,0.90525572,107750.0,107740.0,0.64636722]
[1748526237937,0.54417572,107750.0,107740.0,0.64636722]
[1748526238160,0.54517572,107750.0,107740.0,0.65136722]
[1748526238375,0.90301572,107750.0,107740.0,0.64436722]
[1748526238591,0.90301572,107750.0,107740.0,0.65136722]
[1748526238804,0.54517572,107750.0,107740.0,0.65136722]
[1748526239226,0.54517572,107750.0,107740.0,0.72390484]
[1748526239444,0.20517572,107750.0,107740.0,0.71696722]
[1748526239645,0.20517572,107750.0,107740.0,1.01106722]
[1748526240312,0.20517572,107750.0,107740.0,1.55063345]
[1748526240530,0.20517572,107750.0,107740.0,1.64314467]
[1748526240750,0.01956027,107750.0,107740.0,1.68904467]
[1748526241018,0.02884075,107750.0,107740.0,1.71690067]
[1748526241241,0.22373624,107750.0,107740.0,1.71690067]
[1748526241473,0.21345628,107750.0,107740.0,1.17233444]
[1748526241691,0.21345628,107750.0,107740.0,1.71190067]
[1748526241912,0.20417606,107750.0,107740.0,1.71190067]
[1748526242122,0.20417606,107750.0,107740.0,1.36490067]
[1748526242399,0.19489558,107750.0,107740.0,0.82533444]
[1748526242636,0.19489558,107750.0,107740.0,1.08336237]
[1748526242863,0.19589558,107750.0,107740.0,0.73128237]
[1748526243084,0.19589558,107750.0,107740.0,0.74582322]
[1748526243302,0.19489558,107750.0,107740.0,0.74282322]
[1748526243542,0.19489558,107750.0,107740.0,0.84933444]
[1748526243749,0.19589558,107750.0,107740.0,0.84933444]
[1748526245322,0.19589558,107750.0,107740.0,1.74498067]
[1748526245541,0.19589558,107750.0,107740.0,1.74446067]
[1748526245760,0.19589558,107750.0,107740.0,1.20489444]
[1748526245985,0.19589558,107750.0,107740.0,1.49899444]
[1748526246253,0.19589558,107750.0,107740.0,1.14343444]
[1748526246480,0.19589558,107750.0,107740.0,1.05092322]
[1748526246924,0.19589558,107750.0,107740.0,0.98536322]
[1748526247148,0.53589558,107750.0,107740.0,0.94296637]
[1748526247387,1.07546181,107750.0,107740.0,0.94296637]
[1748526247615,0.53589558,107750.0,107740.0,0.94296637]
[1748526247875,0.53589558,107750.0,107740.0,0.95750722]
[1748526248839,0.19589558,107750.0,107740.0,1.08151844]
[1748526249766,1.07546181,107750.0,107740.0,0.13008722]
[1748526250000,1.07546181,107750.0,107740.0,0.26268722]
[1748526250474,1.07546181,107750.0,107740.0,0.11554637]
[1748526250728,1.10786181,107750.0,107740.0,0.11554637]
[1748526250958,1.14026181,107750.0,107740.0,0.11554637]
[1748526251877,1.14026181,107750.0,107740.0,0.11786643]
[1748526251878,0.95565558,107750.0,107740.0,0.11786643]
[1748526252093,1.49422181,107750.0,107740.0,0.10154637]
[1748526252312,1.50493848,107750.0,107740.0,0.10154637]
[1748526252754,1.50293848,107750.0,107740.0,0.09154637]
[1748526253000,0.96337415,107750.0,107740.0,0.09154637]
[1748526253212,1.50622181,107750.0,107740.0,0.09254637]
[1748526253426,1.51494038,107750.0,107740.0,0.09254637]
[1748526253642,1.51494024,107750.0,107740.0,0.09254637]
[1748526253865,1.51494024,107750.0,107740.0,0.09354637]
[1748526254316,1.5056595,107750.0,107730.0,0.40088]
[1748526254539,1.14017973,107740.0,107730.0,0.49208094]
[1748526255471,1.49349973,107740.0,107730.0,0.48220247]
[1748526255719,1.50221816,107740.0,107730.0,0.48220247]
[1748526255936,1.14889816,107740.0,107730.0,0.48220247]
[1748526256155,1.49417973,107740.0,107730.0,0.48220247]
[1748526256382,1.50489816,107740.0,107730.0,0.48220247]
[1748526256865,1.51015124,107740.0,107700.0,0.00080069]
[1748526257106,0.54425154,107710.0,107700.0,0.00080069]
[1748526257328,1.43769777,107710.0,107700.0,0.22085464]
[1748526257557,1.44642819,107710.0,107700.0,0.22085464]
[1748526257791,1.44642819,107710.0,107700.0,0.2830361]
[1748526258021,1.44642819,107710.0,107700.0,0.23539549]
[1748526258246,1.47872819,107710.0,107700.0,0.22089464]
[1748526258461,1.51022819,107710.0,107700.0,0.22089464]
[1748526258673,0.97066196,107710.0,107700.0,0.09385464]
[1748526258888,1.50149777,107710.0,107700.0,0.22289464]
[1748526259116,1.51022819,107710.0,107700.0,0.09185464]
[1748526259568,1.51122819,107710.0,107700.0,0.10485464]
[1748526259790,1.53426072,107710.0,107700.0,0.10485464]
[1748526260008,0.61622596,107710.0,107700.0,0.13418756]
[1748526260241,1.50326177,107710.0,107700.0,0.14418756]
[1748526260463,1.0069318,107710.0,107700.0,0.10185464]
[1748526260682,1.5268503,107710.0,107700.0,0.09185464]
[1748526260908,1.53558072,107710.0,107700.0,0.09185464]
[1748526261374,1.53558072,107710.0,107700.0,0.22089464]
[1748526261593,1.5268503,107710.0,107700.0,0.22089464]
[1748526261851,1.51199283,107710.0,107700.0,0.09185464]
[1748526262068,1.51499283,107710.0,107700.0,0.09185464]
[1748526262494,0.9754266,107710.0,107700.0,0.09185464]
[1748526262701,1.50626177,107710.0,107700.0,0.09185464]
[1748526262919,1.51499283,107710.0,107700.0,0.09185464]
[1748526263133,1.56153139,107710.0,107700.0,0.09185464]
[1748526263344,1.53794286,107710.0,107700.0,0.09185464]
[1748526263556,1.56153139,107710.0,107700.0,0.09185464]
[1748526263974,1.53794286,107710.0,107700.0,0.09185464]
[1748526264454,0.9742666,107710.0,107700.0,0.09185464]
[1748526264672,0.96553554,107710.0,107700.0,0.09185464]
[1748526264891,0.98918218,107710.0,107700.0,0.09185464]
[1748526265351,0.90169554,107710.0,107700.0,0.09417554]
[1748526265572,0.90169554,107710.0,107700.0,0.09185464]
[1748526265776,0.57334218,107710.0,107700.0,0.09185464]
[1748526266206,0.92518218,107710.0,107700.0,0.09185464]
[1748526267397,0.54969554,107710.0,107700.0,0.17090183]
[1748526267656,0.56105554,107710.0,107700.0,0.10639549]
[1748526268218,0.56081554,107710.0,107700.0,0.10639549]
[1748526268470,0.56081554,107710.0,107700.0,0.09185464]
[1748526268471,1.15296177,107710.0,107700.0,0.09185464]
[1748526268652,0.96471554,107710.0,107700.0,0.09185464]
[1748526268868,1.50428177,107710.0,107700.0,0.09185464]
[1748526269393,1.50428177,107710.0,107700.0,0.22093464]
[1748526269845,1.15296177,107710.0,107700.0,0.09185464]
[1748526270097,1.44018177,107710.0,107700.0,0.09417556]
[1748526270549,0.90061554,107710.0,107700.0,0.09417556]
[1748526270824,0.93231554,107710.0,107700.0,0.09417556]
[1748526271063,0.93231554,107710.0,107700.0,0.09185464]
[1748526271287,1.50198177,107710.0,107700.0,0.09185464]
[1748526271512,1.51070206,107710.0,107700.0,0.09185464]
[1748526271956,1.15978206,107710.0,107700.0,0.09185464]
[1748526272182,1.51046206,107710.0,107700.0,0.09185464]
[1748526272412,1.52136243,107710.0,107700.0,0.09185464]
[1748526272642,0.6010162,107710.0,107700.0,0.09417556]
[1748526272863,0.94289591,107710.0,107700.0,0.09417556]
[1748526273088,0.59229591,107710.0,107700.0,0.09417556]
[1748526273319,0.94313591,107710.0,107700.0,0.09417556]
[1748526273789,0.91123591,107710.0,107700.0,0.09417556]
[1748526274046,1.45081108,107710.0,107700.0,0.09417556]
[1748526274267,1.13959852,107710.0,107700.0,0.09417556]
[1748526274500,1.48131108,107710.0,107700.0,0.09185464]
[1748526274726,0.95047229,107710.0,107700.0,0.09185464]
[1748526274936,1.49003852,107710.0,107700.0,0.09185464]
[1748526275557,1.49003852,107710.0,107700.0,0.09417557]
[1748526275558,1.10889852,107710.0,107700.0,0.09417557]
[1748526275784,1.45921852,107710.0,107700.0,0.09417557]
[1748526276207,1.48951852,107710.0,107700.0,0.09185464]
[1748526276435,1.53525303,107710.0,107700.0,0.00080069]
[1748526276658,1.52434372,107710.0,107700.0,0.00080069]
[1748526277106,0.98477749,107710.0,107700.0,0.00080069]
[1748526277313,1.52434372,107710.0,107700.0,0.00080069]
[1748526278157,1.51561628,107710.0,107700.0,0.00080069]
[1748526278401,0.97605005,107710.0,107700.0,0.00080069]
[1748526278637,1.51561628,107710.0,107700.0,0.00080069]
[1748526278838,0.97605005,107710.0,107700.0,0.00080069]
[1748526279247,1.51561628,107710.0,107700.0,0.00080069]
[1748526279684,1.52436213,107710.0,107700.0,0.00080069]
[1748526280099,1.50982762,107710.0,107700.0,0.00080069]
[1748526280532,0.54432742,107670.0,107660.0,0.027942]
[1748526280739,1.45730589,107670.0,107660.0,0.11899595]
[1748526280984,1.4756195,107670.0,107660.0,0.11899595]
[1748526281248,1.4756195,107670.0,107660.0,6e-05]
[1748526281249,1.5056195,107670.0,107660.0,6e-05]
[1748526281737,1.52926614,107670.0,107660.0,6e-05]
[1748526281966,1.52926614,107670.0,107660.0,0.01206]
[1748526281967,0.9672008,107670.0,107660.0,0.01206]
[1748526282192,1.55769192,107670.0,107660.0,0.01206]
[1748526283045,1.55369192,107670.0,107660.0,6e-05]
[1748526283251,1.55469192,107670.0,107660.0,6e-05]
[1748526283480,1.15668572,107670.0,107660.0,6e-05]
[1748526283688,1.09378572,107670.0,107660.0,0.09111395]
[1748526283930,1.45806201,107670.0,107660.0,0.09111395]
[1748526284120,1.10834201,107670.0,107660.0,0.09111395]
[1748526284326,1.10734201,107670.0,107660.0,0.09111395]
[1748526284534,1.45714201,107670.0,107660.0,0.09111395]
[1748526284746,1.47330201,107670.0,107660.0,0.09311395]
[1748526284937,1.50390201,107670.0,107660.0,0.09311395]
[1748526285157,1.50390201,107670.0,107660.0,0.09411395]
[1748526285158,1.51098201,107670.0,107660.0,0.09411395]
[1748526285369,1.16094201,107670.0,107660.0,0.09411395]
[1748526285581,0.97137578,107670.0,107660.0,0.09411395]
[1748526285795,1.50219747,107670.0,107660.0,0.09411395]
[1748526286096,1.51094201,107670.0,107660.0,0.00306]
[1748526286322,1.54374201,107670.0,107660.0,0.00306]
[1748526286537,6.57918572,107670.0,107660.0,0.00306]
[1748526287850,6.67023967,107670.0,107660.0,0.00306]
[1748526288056,6.69388631,107670.0,107660.0,0.00306]
[1748526288265,6.66999967,107670.0,107660.0,0.00306]
[1748526289121,0.53505833,107660.0,107650.0,0.07848156]
[1748526289329,6.28902305,107660.0,107650.0,0.07848156]
[1748526289540,6.33694925,107660.0,107650.0,0.07848156]
[1748526289738,5.79738302,107660.0,107650.0,0.07848156]
[1748526289959,6.33694925,107660.0,107650.0,0.07848156]
[1748526290379,7.43906703,107660.0,107650.0,0.07948156]
[1748526290601,6.35292021,107660.0,107650.0,0.07948156]
[1748526291053,7.43906703,107660.0,107650.0,0.07948156]
[1748526291477,7.44606703,107660.0,107650.0,0.08048156]
[1748526291683,7.42178747,107660.0,107650.0,0.08048156]
[1748526291886,7.44606703,107660.0,107650.0,0.08048156]
[1748526292233,7.42178747,107660.0,107650.0,0.08048156]
[1748526292430,7.44606703,107660.0,107650.0,0.08048156]
[1748526292649,7.42178747,107660.0,107650.0,0.08048156]
[1748526293232,0.57528437,107640.0,107630.0,0.02677342]
[1748526293433,1.5505203,107640.0,107630.0,0.02677342]
[1748526293663,1.2409558,107640.0,107630.0,0.02677342]
[1748526293893,1.5894358,107640.0,107630.0,0.02677342]
[1748526294498,0.54442236,107620.0,107610.0,0.44490019]
[1748526294699,0.89270236,107620.0,107610.0,0.53595414]
[1748526294904,1.43226859,107620.0,107610.0,0.53595414]
[1748526295159,1.44098409,107620.0,107610.0,0.53595414]
[1748526295599,1.09270409,107620.0,107610.0,0.53595414]
[1748526295808,1.44394859,107620.0,107610.0,0.53695414]
[1748526296034,0.56528528,107620.0,107610.0,0.53695414]
[1748526296250,0.90448978,107620.0,107610.0,0.61549499]
[1748526296468,0.90448978,107620.0,107610.0,0.62549499]
[1748526296469,0.21656978,107620.0,107610.0,0.62549499]
[1748526296680,0.21656978,107620.0,107610.0,1.29150122]
[1748526296890,0.22856978,107620.0,107610.0,0.84544621]
[1748526297519,0.21656978,107620.0,107610.0,0.84544621]
[1748526297772,0.20456978,107620.0,107610.0,0.84444621]
[1748526297985,0.20656978,107620.0,107610.0,0.76593499]
[1748526298203,0.20856978,107620.0,107610.0,0.76593499]
[1748526298419,0.20856978,107620.0,107610.0,0.83928726]
[1748526298636,0.21056978,107620.0,107610.0,0.85228726]
[1748526299099,0.20856978,107620.0,107610.0,0.85128726]
[1748526299312,0.20856978,107620.0,107610.0,0.76493499]
[1748526299516,0.20856978,107620.0,107610.0,0.76593499]
[1748526299517,0.21056978,107620.0,107610.0,0.76593499]
[1748526300489,0.55868978,107620.0,107610.0,0.76593499]
[1748526300730,0.55868978,107620.0,107610.0,0.75593499]
[1748526301198,0.55868978,107620.0,107610.0,0.84228726]
[1748526301460,0.55848978,107620.0,107610.0,0.84228726]
[1748526301687,0.21056978,107620.0,107610.0,0.75593499]
[1748526301931,0.55832978,107620.0,107610.0,0.75403499]
[1748526302424,0.21056978,107620.0,107610.0,0.76403499]
[1748526302650,0.55812978,107620.0,107610.0,0.85019725]
[1748526302879,0.21056978,107620.0,107610.0,0.85019725]
[1748526303101,0.55804978,107620.0,107610.0,0.85019725]
[1748526303376,0.55800978,107620.0,107610.0,0.85019725]
[1748526303609,0.55800978,107620.0,107610.0,0.75403499]
[1748526303833,1.09757601,107620.0,107610.0,0.78193199]
[1748526304072,1.12674905,107620.0,107610.0,0.78193199]
[1748526304296,1.12674905,107620.0,107610.0,0.71983199]
[1748526304749,1.46674905,107620.0,107610.0,0.69193499]
[1748526305214,0.90672664,107620.0,107610.0,0.69193499]
[1748526305438,1.46674905,107620.0,107610.0,0.67739414]
[1748526305655,0.55928664,107620.0,107610.0,0.71039414]
[1748526305878,0.55056978,107620.0,107610.0,0.74259414]
[1748526306102,1.46682905,107620.0,107610.0,0.75713499]
[1748526306323,0.90680664,107620.0,107610.0,0.75713499]
[1748526306668,0.89888978,107620.0,107610.0,0.75713499]
[1748526306694,0.55056978,107620.0,107610.0,0.75713499]
[1748526306870,0.89884978,107620.0,107610.0,0.75713499]
[1748526307074,0.89884978,107620.0,107610.0,0.84639715]
[1748526307275,0.21056978,107620.0,107610.0,0.84639715]
[1748526307476,0.55872978,107620.0,107610.0,0.75713499]
[1748526307695,0.55872978,107620.0,107610.0,0.63069499]
[1748526307934,0.55872978,107620.0,107610.0,0.75713499]
[1748526308767,0.89872978,107620.0,107610.0,0.69193499]
[1748526308990,1.47839468,107620.0,107610.0,0.55095414]
[1748526309396,1.48713467,107620.0,107610.0,0.67739414]
[1748526309638,0.5702354,107620.0,107610.0,0.67739414]
[1748526309871,1.49102509,107620.0,107610.0,0.67739414]
[1748526310116,0.92228582,107620.0,107610.0,0.67739414]
[1748526310341,1.49070509,107620.0,107610.0,0.67739414]
[1748526310810,1.52290509,107620.0,107610.0,0.55095414]
[1748526311058,0.95416582,107620.0,107610.0,0.67739414]
[1748526311273,0.93962977,107620.0,107610.0,0.67739414]
[1748526311706,1.49075848,107620.0,107610.0,0.67739414]
[1748526311928,1.12404904,107620.0,107610.0,0.66439414]
[1748526312145,1.12404904,107620.0,107610.0,0.66339414]
[1748526312146,1.47204904,107620.0,107610.0,0.66339414]
[1748526312378,0.95109961,107620.0,107610.0,0.67739414]
[1748526312600,1.04361083,107620.0,107610.0,0.67739414]
[1748526312820,1.04361083,107620.0,107610.0,0.67839414]
[1748526312821,1.52183888,107620.0,107610.0,0.67839414]
[1748526313081,1.50724904,107620.0,107610.0,0.55195414]
[1748526313321,1.47448904,107620.0,107610.0,0.67839414]
[1748526313528,1.48923589,107620.0,107610.0,0.67839414]
[1748526314380,1.14063589,107620.0,107610.0,0.67839414]
[1748526314599,1.50768904,107620.0,107610.0,0.67839414]
[1748526314811,1.47464904,107620.0,107610.0,0.67839414]
[1748526315033,0.93630977,107620.0,107610.0,0.67839414]
[1748526315265,0.93630977,107620.0,107610.0,0.67747414]
[1748526315959,0.96910977,107620.0,107610.0,0.15079414]
[1748526316224,0.96910977,107620.0,107610.0,0.24829899]
[1748526316225,5.67050977,107620.0,107610.0,0.24829899]
[1748526316457,0.90598977,107620.0,107610.0,0.24829899]
[1748526316693,1.12604904,107620.0,107610.0,0.24829899]
[1748526316908,1.47268904,107620.0,107610.0,0.24729899]
[1748526317133,0.90396539,107620.0,107610.0,0.24729899]
[1748526317794,1.50070466,107620.0,107610.0,0.23329899]
[1748526318024,0.93196539,107620.0,107610.0,0.23529899]
[1748526318280,0.93160539,107620.0,107610.0,0.14306766]
[1748526318508,0.90176539,107620.0,107610.0,0.2376219]
[1748526318730,0.57812388,107620.0,107610.0,0.25083984]
[1748526318952,0.23987388,107620.0,107610.0,0.34638259]
[1748526319397,0.23111827,107620.0,107610.0,0.34638259]
[1748526319666,0.56916827,107620.0,107610.0,0.34638259]
[1748526319904,0.56916827,107620.0,107610.0,0.31153984]
[1748526319905,0.22016827,107620.0,107610.0,0.31153984]
[1748526320119,0.56940827,107620.0,107610.0,0.31153984]
[1748526321230,0.56940827,107620.0,107610.0,0.25083984]
[1748526321231,1.12354905,107620.0,107610.0,0.25083984]
[1748526321676,0.55480978,107620.0,107610.0,0.25083984]
[1748526321895,1.12354905,107620.0,107610.0,0.25083984]
[1748526322367,0.55480978,107620.0,107610.0,0.25083984]
[1748526322583,0.55480978,107620.0,107610.0,0.34948259]
[1748526322802,0.55480978,107620.0,107610.0,0.60873984]
[1748526322803,0.20556978,107620.0,107610.0,0.60873984]
[1748526323021,0.55476978,107620.0,107610.0,0.60873984]
[1748526323243,0.89476978,107620.0,107610.0,0.60873984]
[1748526324173,1.11430905,107620.0,107610.0,0.54393984]
[1748526324392,1.14530905,107620.0,107610.0,0.40387899]
[1748526324606,1.14530905,107620.0,107610.0,0.23529899]
[1748526324607,1.56799802,107620.0,107610.0,0.23529899]
[1748526324840,1.60009802,107620.0,107610.0,0.23529899]
[1748526325065,1.60009802,107620.0,107610.0,0.14424504]
[1748526325730,1.66320977,107620.0,107610.0,0.01872504]
[1748526325954,6.71220977,107620.0,107610.0,0.14124504]
[1748526326175,6.72420977,107620.0,107610.0,0.14224504]
[1748526326402,6.73620977,107620.0,107610.0,0.14224504]
[1748526326628,6.09346153,107620.0,107610.0,0.14224504]
[1748526326865,1.06682153,107620.0,107610.0,0.14224504]
[1748526327102,1.6355608,107620.0,107610.0,0.14224504]
[1748526327319,1.6355608,107620.0,107610.0,0.14456801]
[1748526327778,1.06682153,107620.0,107610.0,0.14456801]
[1748526327997,1.6355608,107620.0,107610.0,0.14456801]
[1748526328423,1.6355608,107620.0,107610.0,0.23562196]
[1748526328643,1.2004208,107620.0,107610.0,0.23329899]
[1748526328868,1.13730905,107620.0,107610.0,0.10777899]
[1748526329090,1.13730905,107620.0,107610.0,0.11010189]
[1748526329091,0.56856978,107620.0,107610.0,0.11010189]
[1748526329308,1.51206905,107620.0,107610.0,0.11010189]
[1748526329526,1.51206905,107620.0,107610.0,0.10777899]
[1748526329757,0.94288978,107620.0,107610.0,0.10777899]
[1748526329973,1.51162905,107620.0,107610.0,0.11010188]
[1748526330209,1.13730905,107620.0,107610.0,0.10777899]
[1748526330430,0.22856978,107620.0,107610.0,0.18794273]
[1748526330680,0.22856978,107620.0,107610.0,0.18561984]
[1748526330916,0.60276978,107620.0,107610.0,0.18561984]
[1748526331148,0.22856978,107620.0,107610.0,0.18794253]
[1748526331368,0.22856978,107620.0,107610.0,0.22924486]
[1748526331369,0.62209131,107620.0,107610.0,0.22924486]
[1748526331582,0.62205131,107620.0,107610.0,0.22924486]
[1748526332027,0.62205131,107620.0,107610.0,0.18561984]
[1748526332723,1.36532691,107620.0,107610.0,0.10777899]
[1748526332934,1.3543705,107620.0,107610.0,0.10777899]
[1748526333154,0.96570344,107620.0,107610.0,0.10777899]
[1748526333384,1.33976196,107620.0,107610.0,0.10777899]
[1748526334317,1.43330364,107620.0,107610.0,0.10777899]
[1748526335439,1.40300364,107620.0,107610.0,0.10777899]
[1748526335684,1.40300364,107620.0,107610.0,0.24845899]
[1748526335685,0.9488549,107620.0,107610.0,0.24845899]
[1748526335909,0.60290222,107620.0,107610.0,0.32739984]
[1748526336162,0.58829309,107620.0,107610.0,0.33761524]
[1748526336379,0.58829309,107620.0,107610.0,0.36551524]
[1748526336601,0.95961309,107620.0,107610.0,0.36551524]
[1748526336825,0.58829309,107620.0,107610.0,0.36551524]
[1748526337047,0.95969309,107620.0,107610.0,0.36551524]
[1748526337258,0.9487349,107620.0,107610.0,0.35529984]
[1748526337498,0.95969327,107620.0,107610.0,0.32269984]
[1748526337728,0.95969327,107620.0,107610.0,0.29089984]
[1748526337951,0.96845996,107620.0,107610.0,0.29089984]